fUST/lending_fUST_20250101
["ID","MTS","AMOUNT","RATE_DAILY","PERIOD"]
[347310391,1735679451952,-151.0,0.000206,3]
[347310392,1735679451962,-342.263001,0.000206,9]
[347310393,1735679451971,-1000.0,0.000206,2]
[347310394,1735679451980,-191.44974,0.000206,2]
[347310395,1735679451989,-191.44974,0.000206,2]
[347310396,1735679451998,-687.313315,0.000206,2]
[347310397,1735679452008,-687.313315,0.000206,2]
[347310398,1735679452017,-1625.3365,0.000206,2]
[347310399,1735679452026,-180.3745434,0.00020609,2]
[347310400,1735679452036,-23778.7841132,0.0002061,2]
[347310401,1735679452047,-523.411285,0.0002061,2]
[347310402,1735679452056,-523.411285,0.0002061,2]
[347310403,1735679452066,-275.501114,0.0002061,2]
[347310404,1735679452076,-275.501114,0.0002061,2]
[347310405,1735679452085,-169.592575,0.0002061,2]
[347310406,1735679452095,-169.592575,0.0002061,2]
[347310407,1735679452104,-344.8621639,0.00020656,2]
[347310408,1735679452115,-276.99246,0.00020712,2]
[347310409,1735679452124,-153.24,0.00020716,2]
[347310410,1735679452133,-4663.45553629,0.00020721,2]
[347310411,1735679452143,-371.616481,0.00020724,2]
[347310412,1735679452153,-371.616481,0.00020724,2]
[347310413,1735679452162,-5000.0,0.00020724,2]
[347310414,1735679452171,-187.0,0.000208,2]
[347310415,1735679452180,-151.0,0.000208,4]
[347310416,1735679452189,-340.834427,0.000208,2]
[347310417,1735679452198,-340.834427,0.000208,2]
[347310418,1735679452207,-150.0,0.000208,2]
[347310419,1735679452216,-1625.3365,0.000208,2]
[347310420,1735679452225,-500.0,0.00020819,2]
[347310421,1735679452235,-2771.5918909,0.0002082,5]
[347310422,1735679452244,-3828.35666115,0.00020821,2]
[347310423,1735679452253,-39579.21176676,0.00020821,2]
[347310424,1735679452262,-150.18,0.00020821,2]
[347310425,1735679452271,-150.18,0.00020821,2]
[347310426,1735679452280,-150.18,0.00020821,2]
[347310427,1735679452289,-750.12575115,0.00020821,2]
[347310428,1735679452298,-150.18,0.00020821,2]
[347310429,1735679452308,-500.0,0.00020821,2]
[347310430,1735679452317,-500.0,0.00020821,2]
[347310431,1735679452326,-150.18,0.00020821,2]
[347310432,1735679452335,-600.92,0.00020821,2]
[347310433,1735679452344,-151.0,0.00020821,2]
[347310434,1735679452353,-288.380927,0.00020821,2]
[347310435,1735679452362,-500.0,0.00020821,3]
[347310436,1735679452371,-500.0,0.00020821,3]
[347310437,1735679452380,-151.0,0.00020821,2]
[347310438,1735679452389,-160.048068,0.00020821,2]
[347310439,1735679452399,-151.0,0.00020821,2]
[347310440,1735679452407,-151.0,0.00020821,2]
[347310441,1735679452416,-151.0,0.00020821,2]
[347310442,1735679452425,-500.0,0.00020821,3]
[347310443,1735679452435,-151.0,0.00020821,2]
[347310444,1735679452445,-151.0,0.00020821,2]
[347310445,1735679452454,-555.25,0.00020821,3]
[347310446,1735679452463,-7797.53,0.00020821,3]
[347310447,1735679452472,-500.0,0.00020821,3]
[347310448,1735679452483,-853.75,0.00020821,3]
[347310449,1735679452493,-500.0,0.00020821,3]
[347310450,1735679452503,-1271.48,0.00020821,3]
[347310451,1735679452512,-1470.73,0.00020821,3]
[347310452,1735679452521,-500.0,0.00020821,3]
[347310453,1735679452531,-532.45,0.00020821,3]
[347310454,1735679452540,-500.0,0.00020821,3]
[347310455,1735679452549,-500.0,0.00020821,3]
[347310456,1735679452558,-500.0,0.00020821,3]
[347310457,1735679452567,-855.05,0.00020821,3]
[347310458,1735679452576,-500.0,0.00020821,3]
[347310459,1735679452585,-456.331573,0.00020821,2]
[347310460,1735679452594,-456.331573,0.00020821,2]
[347310461,1735679452603,-683.45,0.00020821,3]
[347310462,1735679452612,-500.0,0.00020821,3]
[347310463,1735679452621,-500.0,0.00020821,3]
[347310464,1735679452631,-456.331573,0.00020821,2]
[347310465,1735679452639,-456.331573,0.00020821,2]
[347310466,1735679452649,-772.63,0.00020821,3]
[347310467,1735679452658,-500.0,0.00020821,3]
[347310468,1735679452667,-719.37,0.00020821,3]
[347310469,1735679452676,-500.0,0.00020821,3]
[347310470,1735679452685,-500.0,0.00020821,3]
[347310471,1735679452694,-500.0,0.00020821,3]
[347310472,1735679452703,-315.87050643,0.00020821,3]
[347310473,1735679452715,-500.0,0.00020821,3]
[347310474,1735679452724,-500.0,0.00020821,3]
[347310475,1735679452733,-595.35,0.00020821,3]
[347310476,1735679452742,-500.0,0.00020821,3]
[347310477,1735679452751,-500.0,0.00020821,3]
[347310478,1735679452760,-500.0,0.00020821,3]
[347310479,1735679452769,-500.0,0.00020821,2]
[347310480,1735679452778,-313.136126,0.00020821,2]
[347310481,1735679452787,-5062.37,0.00020821,3]
[347310482,1735679452797,-500.0,0.00020821,3]
[347310483,1735679452805,-623.88,0.00020821,3]
[347310484,1735679452815,-500.0,0.00020821,3]
[347310485,1735679452823,-906.38,0.00020821,3]
[347310486,1735679452914,-151.0,0.00020821,2]
[347310487,1735679452924,-624.44,0.00020821,3]
[347310488,1735679452933,-597.87,0.00020821,3]
[347310489,1735679452943,-340.834427,0.00020821,2]
[347310490,1735679452954,-340.834427,0.00020821,2]
[347310491,1735679452964,-500.0,0.00020821,3]
[347310492,1735679452974,-325.68209479,0.00020821,3]
[347310493,1735679452983,-750.06,0.00020821,3]
[347310494,1735679452993,-1089.62,0.00020821,3]
[347310495,1735679453003,-557.74,0.00020821,3]
[347310496,1735679453012,-500.0,0.00020821,3]
[347310497,1735679453021,-500.0,0.00020821,3]
[347310498,1735679453031,-1061.03,0.00020821,3]
[347310499,1735679453040,-500.0,0.00020821,3]
[347310500,1735679453050,-231.819887,0.00020821,2]
[347310501,1735679453059,-735.12,0.00020821,3]
[347310502,1735679453068,-231.819887,0.00020821,2]
[347310503,1735679453078,-561.1,0.00020821,3]
[347310504,1735679453087,-230.623201,0.00020821,2]
[347310505,1735679453097,-230.623201,0.00020821,2]
[347310506,1735679453105,-500.0,0.00020821,3]
[347310507,1735679453115,-230.623201,0.00020821,2]
[347310508,1735679453123,-230.623201,0.00020821,2]
[347310509,1735679453132,-500.0,0.00020821,3]
[347310510,1735679453142,-723.8,0.00020821,3]
[347310511,1735679453151,-151.0,0.00020821,2]
[347310512,1735679453160,-151.0,0.00020821,2]
[347310513,1735679453170,-1078.54,0.00020821,3]
[347310514,1735679453179,-264.728668,0.00020821,2]
[347310515,1735679453188,-500.0,0.00020821,3]
[347310516,1735679453197,-614.34,0.00020821,3]
[347310517,1735679453206,-3291.31,0.00020821,3]
[347310518,1735679453218,-264.728668,0.00020821,2]
[347310519,1735679453227,-920.06,0.00020821,3]
[347310520,1735679453236,-596.25,0.00020821,3]
[347310521,1735679453245,-371.616481,0.00020821,2]
[347310522,1735679453255,-371.616481,0.00020821,2]
[347310523,1735679453264,-2095.76,0.00020821,3]
[347310524,1735679453273,-826.6,0.00020821,3]
[347310525,1735679453282,-500.0,0.00020821,3]
[347310526,1735679453291,-523.411285,0.00020821,2]
[347310527,1735679453301,-500.0,0.00020821,3]
[347310528,1735679453310,-833.34,0.00020821,3]
[347310529,1735679453319,-500.0,0.00020821,3]
[347310530,1735679453328,-523.411285,0.00020821,2]
[347310531,1735679453337,-1558.72,0.00020821,3]
[347310532,1735679453346,-2078.82,0.00020821,3]
[347310533,1735679453356,-500.0,0.00020821,3]
[347310534,1735679453364,-275.501114,0.00020821,2]
[347310535,1735679453374,-500.0,0.00020821,2]
[347310536,1735679453383,-275.501114,0.00020821,2]
[347310537,1735679453392,-500.0,0.00020821,3]
[347310538,1735679453402,-1419.68,0.00020821,3]
[347310539,1735679453411,-169.592575,0.00020821,2]
[347310540,1735679453420,-169.592575,0.00020821,2]
[347310541,1735679453429,-500.0,0.00020821,3]
[347310542,1735679453438,-2921.96,0.00020821,3]
[347310543,1735679453447,-500.0,0.00020821,3]
[347310544,1735679453456,-799.98,0.00020821,3]
[347310545,1735679453466,-191.44974,0.00020821,2]
[347310546,1735679453474,-191.44974,0.00020821,2]
[347310547,1735679453484,-689.76,0.00020821,3]
[347310548,1735679453493,-861.64,0.00020821,3]
[347310549,1735679453503,-600.4,0.00020821,3]
[347310550,1735679453512,-731.78,0.00020821,3]
[347310551,1735679453522,-751.77,0.00020821,3]
[347310552,1735679453531,-500.0,0.00020821,3]
[347310553,1735679453540,-756.61,0.00020821,3]
[347310554,1735679453550,-730.16,0.00020821,3]
[347310555,1735679453560,-500.0,0.00020821,3]
[347310556,1735679453569,-2423.86,0.00020821,3]
[347310557,1735679453579,-1420.74,0.00020821,3]
[347310558,1735679453588,-39820.71,0.00020821,3]
[347310559,1735679453598,-500.0,0.00020821,3]
[347310560,1735679453607,-1014.13,0.00020821,3]
[347310561,1735679453617,-500.0,0.00020821,3]
[347310562,1735679453626,-1726.52,0.00020821,3]
[347310563,1735679453636,-6262.73,0.00020821,3]
[347310564,1735679453646,-1078.31,0.00020821,3]
[347310565,1735679453655,-1324.32,0.00020821,3]
[347310566,1735679453665,-1826.49,0.00020821,3]
[347310567,1735679453674,-500.0,0.00020821,3]
[347310568,1735679453683,-885.37,0.00020821,3]
[347310569,1735679453693,-961.81,0.00020821,3]
[347310570,1735679453702,-754.45,0.00020821,3]
[347310571,1735679453712,-1477.71,0.00020821,3]
[347310572,1735679453722,-915.66,0.00020821,3]
[347310573,1735679453731,-500.0,0.00020821,3]
[347310574,1735679453740,-500.0,0.00020821,3]
[347310575,1735679453750,-687.313315,0.00020821,2]
[347310576,1735679453760,-500.0,0.00020821,3]
[347310577,1735679453769,-500.0,0.00020821,3]
[347310578,1735679453778,-687.313315,0.00020821,2]
[347310579,1735679453788,-500.0,0.00020821,3]
[347310580,1735679453797,-830.37,0.00020821,3]
[347310581,1735679453806,-1182.84,0.00020821,3]
[347310582,1735679453815,-5516.38,0.00020821,3]
[347310583,1735679453824,-500.0,0.00020821,3]
[347310584,1735679453834,-500.0,0.00020821,3]
[347310585,1735679453843,-500.0,0.00020821,3]
[347310586,1735679453852,-500.0,0.00020821,3]
[347310587,1735679453861,-500.0,0.00020821,3]
[347310588,1735679453870,-1548.35,0.00020821,3]
[347310589,1735679453880,-8771.98,0.00020821,3]
[347310590,1735679453890,-503.42,0.00020821,3]
[347310591,1735679453901,-1016.18,0.00020821,3]
[347310592,1735679453911,-500.0,0.00020821,3]
[347310593,1735679453920,-500.0,0.00020821,3]
[347310594,1735679453931,-956.62,0.00020821,3]
[347310595,1735679453940,-845.91,0.00020821,3]
[347310596,1735679453949,-303.69,0.00020821,3]
[347310597,1735679453958,-500.0,0.00020821,3]
[347310598,1735679453970,-727.17,0.00020821,3]
[347310599,1735679453979,-500.0,0.00020821,3]
[347310600,1735679453989,-571.77,0.00020821,3]
[347310601,1735679453998,-2896.96,0.00020821,3]
[347310602,1735679454008,-1237.87,0.00020821,3]
[347310603,1735679454017,-565.9,0.00020821,3]
[347310604,1735679454027,-4261.59,0.00020821,3]
[347310605,1735679454038,-500.0,0.00020821,3]
[347310606,1735679454047,-1582.67,0.00020821,3]
[347310607,1735679454056,-486.53455558,0.00020821,3]
[347310608,1735679454066,-389.805421,0.00020821,2]
[347310609,1735679454076,-389.805421,0.00020821,2]
[347310610,1735679454085,-389.805421,0.00020821,2]
[347310611,1735679454095,-389.805421,0.00020821,2]
[347310612,1735679454104,-344.8621639,0.00020831,2]
[347310613,1735679454114,-465.02988067,0.00020867,2]
[347310614,1735679454123,-276.99246,0.00020904,2]
[347310615,1735679454132,-4663.45553622,0.00020909,2]
[347310616,1735679454142,-10000.0,0.00021,5]
[347310617,1735679454152,-263.16727245,0.00021,2]
[347310618,1735679454161,-10331.0489514,0.00021,2]
[347310619,1735679454171,-237.17236568,0.00021,2]
[347310620,1735679454180,-1000.0,0.00021,21]
[347310621,1735679454190,-1000.0,0.00021,5]
[347310622,1735679454199,-3000.0,0.00021,2]
[347310623,1735679454209,-313.136126,0.00021,2]
[347310624,1735679454218,-313.136126,0.00021,2]
[347310625,1735679454228,-151.0,0.00021,2]
[347310626,1735679454237,-231.819887,0.00021,2]
[347310627,1735679454246,-231.819887,0.00021,2]
[347310628,1735679454256,-191.44974,0.00021,2]
[347310629,1735679454266,-191.44974,0.00021,2]
[347310630,1735679454275,-687.313315,0.00021,2]
[347310631,1735679454285,-687.313315,0.00021,2]
[347310632,1735679454294,-344.8621639,0.00021006,2]
[347310633,1735679454303,-3000.0,0.0002101,2]
[347310634,1735679454313,-2500.0,0.00021016,2]
[347310635,1735679454322,-3000.0,0.0002102,2]
[347310636,1735679454331,-264.728668,0.0002102,2]
[347310637,1735679454341,-264.728668,0.0002102,2]
[347310638,1735679454350,-2500.0,0.00021025,2]
[347310639,1735679454361,-3000.0,0.0002103,2]
[347310640,1735679454370,-3000.0,0.0002104,2]
[347310641,1735679454379,-3000.0,0.0002105,2]
[347310642,1735679454388,-3000.0,0.0002106,2]
[347310643,1735679454398,-151.0,0.0002106,2]
[347310644,1735679454407,-3909.54316,0.0002107,2]
[347310645,1735679454416,-180.69763039,0.00021094,2]
[347310646,1735679454426,-199.79833055,0.00021095,2]
[347310647,1735679454435,-199.64,0.00021095,2]
[347310648,1735679454445,-199.64,0.00021095,2]
[347310649,1735679454455,-150.18,0.00021095,2]
[347310650,1735679454465,-954.24,0.00021095,2]
[347310651,1735679454475,-500.0,0.00021095,2]
[347310652,1735679454484,-199.64,0.00021095,2]
[347310653,1735679454576,-674.34,0.00021095,3]
[347310654,1735679454586,-151.0,0.00021095,2]
[347310655,1735679454595,-500.0,0.00021095,3]
[347310656,1735679454604,-500.0,0.00021095,3]
[347310657,1735679454614,-151.0,0.00021095,2]
[347310658,1735679454623,-151.0,0.00021095,2]
[347310659,1735679454633,-151.0,0.00021095,2]
[347310660,1735679454643,-500.0,0.00021095,3]
[347310661,1735679454653,-186.274761,0.00021095,2]
[347310662,1735679454663,-555.25,0.00021095,3]
[347310663,1735679454672,-7797.53,0.00021095,3]
[347310664,1735679454682,-500.0,0.00021095,3]
[347310665,1735679454692,-853.75,0.00021095,3]
[347310666,1735679454701,-500.0,0.00021095,3]
[347310667,1735679454711,-1271.48,0.00021095,3]
[347310668,1735679454720,-1470.73,0.00021095,3]
[347310669,1735679454730,-500.0,0.00021095,3]
[347310670,1735679454741,-532.45,0.00021095,3]
[347310671,1735679454750,-500.0,0.00021095,3]
[347310672,1735679454759,-500.0,0.00021095,3]
[347310673,1735679454769,-500.0,0.00021095,3]
[347310674,1735679454779,-855.05,0.00021095,3]
[347310675,1735679454788,-500.0,0.00021095,3]
[347310676,1735679454798,-456.331573,0.00021095,2]
[347310677,1735679454808,-683.45,0.00021095,3]
[347310678,1735679454817,-500.0,0.00021095,3]
[347310679,1735679454826,-500.0,0.00021095,3]
[347310680,1735679454836,-456.331573,0.00021095,2]
[347310681,1735679454846,-772.63,0.00021095,3]
[347310682,1735679454855,-500.0,0.00021095,3]
[347310683,1735679454864,-719.37,0.00021095,3]
[347310684,1735679454873,-500.0,0.00021095,3]
[347310685,1735679454882,-500.0,0.00021095,3]
[347310686,1735679454893,-500.0,0.00021095,3]
[347310687,1735679454902,-500.0,0.00021095,3]
[347310688,1735679454912,-500.0,0.00021095,3]
[347310689,1735679454922,-595.35,0.00021095,3]
[347310690,1735679454932,-500.0,0.00021095,3]
[347310691,1735679454941,-500.0,0.00021095,3]
[347310692,1735679454951,-500.0,0.00021095,3]
[347310693,1735679454960,-313.136126,0.00021095,2]
[347310694,1735679454970,-500.0,0.00021095,2]
[347310695,1735679454979,-313.136126,0.00021095,2]
[347310696,1735679454988,-5062.37,0.00021095,3]
[347310697,1735679454998,-500.0,0.00021095,3]
[347310698,1735679455008,-623.88,0.00021095,3]
[347310699,1735679455017,-500.0,0.00021095,3]
[347310700,1735679455026,-906.38,0.00021095,3]
[347310701,1735679455035,-151.0,0.00021095,2]
[347310702,1735679455045,-624.44,0.00021095,3]
[347310703,1735679455055,-597.87,0.00021095,3]
[347310704,1735679455065,-340.834427,0.00021095,2]
[347310705,1735679455074,-340.834427,0.00021095,2]
[347310706,1735679455084,-340.834427,0.00021095,2]
[347310707,1735679455093,-340.834427,0.00021095,2]
[347310708,1735679455103,-500.0,0.00021095,3]
[347310709,1735679455112,-750.06,0.00021095,3]
[347310710,1735679455122,-1089.62,0.00021095,3]
[347310711,1735679455131,-557.74,0.00021095,3]
[347310712,1735679455140,-500.0,0.00021095,3]
[347310713,1735679455150,-500.0,0.00021095,3]
[347310714,1735679455159,-1061.03,0.00021095,3]
[347310715,1735679455168,-500.0,0.00021095,3]
[347310716,1735679455178,-231.819887,0.00021095,2]
[347310717,1735679455187,-735.12,0.00021095,3]
[347310718,1735679455197,-231.819887,0.00021095,2]
[347310719,1735679455207,-561.1,0.00021095,3]
[347310720,1735679455216,-230.623201,0.00021095,2]
[347310721,1735679455226,-500.0,0.00021095,3]
[347310722,1735679455235,-230.623201,0.00021095,2]
[347310723,1735679455244,-500.0,0.00021095,3]
[347310724,1735679455253,-723.8,0.00021095,3]
[347310725,1735679455263,-151.0,0.00021095,2]
[347310726,1735679455272,-151.0,0.00021095,2]
[347310727,1735679455281,-264.728668,0.00021095,2]
[347310728,1735679455291,-1078.54,0.00021095,3]
[347310729,1735679455300,-500.0,0.00021095,3]
[347310730,1735679455310,-3291.31,0.00021095,3]
[347310731,1735679455319,-614.34,0.00021095,3]
[347310732,1735679455328,-264.728668,0.00021095,2]
[347310733,1735679455338,-920.06,0.00021095,3]
[347310734,1735679455347,-596.25,0.00021095,3]
[347310735,1735679455356,-371.616481,0.00021095,2]
[347310736,1735679455365,-371.616481,0.00021095,2]
[347310737,1735679455374,-371.616481,0.00021095,2]
[347310738,1735679455383,-371.616481,0.00021095,2]
[347310739,1735679455393,-2095.76,0.00021095,3]
[347310740,1735679455402,-826.6,0.00021095,3]
[347310741,1735679455411,-500.0,0.00021095,3]
[347310742,1735679455421,-523.411285,0.00021095,2]
[347310743,1735679455430,-523.411285,0.00021095,2]
[347310744,1735679455439,-500.0,0.00021095,3]
[347310745,1735679455449,-833.34,0.00021095,3]
[347310746,1735679455458,-500.0,0.00021095,3]
[347310747,1735679455468,-523.411285,0.00021095,2]
[347310748,1735679455477,-1558.72,0.00021095,3]
[347310749,1735679455489,-523.411285,0.00021095,2]
[347310750,1735679455498,-2078.82,0.00021095,3]
[347310751,1735679455507,-500.0,0.00021095,3]
[347310752,1735679455516,-275.501114,0.00021095,2]
[347310753,1735679455526,-275.501114,0.00021095,2]
[347310754,1735679455536,-275.501114,0.00021095,2]
[347310755,1735679455544,-275.501114,0.00021095,2]
[347310756,1735679455554,-500.0,0.00021095,3]
[347310757,1735679455563,-1419.68,0.00021095,3]
[347310758,1735679455572,-169.592575,0.00021095,2]
[347310759,1735679455581,-169.592575,0.00021095,2]
[347310760,1735679455591,-169.592575,0.00021095,2]
[347310761,1735679455600,-169.592575,0.00021095,2]
[347310762,1735679455609,-500.0,0.00021095,3]
[347310763,1735679455619,-2921.96,0.00021095,3]
[347310764,1735679455628,-500.0,0.00021095,3]
[347310765,1735679455637,-799.98,0.00021095,3]
[347310766,1735679455646,-191.44974,0.00021095,2]
[347310767,1735679455655,-191.44974,0.00021095,2]
[347310768,1735679455664,-689.76,0.00021095,3]
[347310769,1735679455674,-861.64,0.00021095,3]
[347310770,1735679455683,-600.4,0.00021095,3]
[347310771,1735679455692,-731.78,0.00021095,3]
[347310772,1735679455702,-751.77,0.00021095,3]
[347310773,1735679455712,-500.0,0.00021095,3]
[347310774,1735679455721,-756.61,0.00021095,3]
[347310775,1735679455730,-730.16,0.00021095,3]
[347310776,1735679455739,-370.37278133,0.00021095,3]
[347310777,1735679455748,-2423.86,0.00021095,3]
[347310778,1735679455757,-1420.74,0.00021095,3]
[347310779,1735679455767,-39820.71,0.00021095,3]
[347310780,1735679455776,-500.0,0.00021095,3]
[347310781,1735679455785,-1014.13,0.00021095,3]
[347310782,1735679455795,-500.0,0.00021095,3]
[347310783,1735679455804,-1726.52,0.00021095,3]
[347310784,1735679455813,-6262.73,0.00021095,3]
[347310785,1735679455822,-1078.31,0.00021095,3]
[347310786,1735679455831,-1324.32,0.00021095,3]
[347310787,1735679455841,-1826.49,0.00021095,3]
[347310788,1735679455850,-500.0,0.00021095,3]
[347310789,1735679455859,-885.37,0.00021095,3]
[347310790,1735679455868,-961.81,0.00021095,3]
[347310791,1735679455877,-754.45,0.00021095,3]
[347310792,1735679455886,-1477.71,0.00021095,3]
[347310793,1735679455899,-915.66,0.00021095,3]
[347310794,1735679455909,-500.0,0.00021095,3]
[347310795,1735679455918,-278.95983926,0.00021095,3]
[347310796,1735679455928,-687.313315,0.00021095,2]
[347310797,1735679455938,-500.0,0.00021095,3]
[347310798,1735679455947,-500.0,0.00021095,3]
[347310799,1735679455957,-687.313315,0.00021095,2]
[347310800,1735679455967,-500.0,0.00021095,3]
[347310801,1735679455977,-830.37,0.00021095,3]
[347310802,1735679455986,-1182.84,0.00021095,3]
[347310803,1735679455995,-5516.38,0.00021095,3]
[347310804,1735679456004,-500.0,0.00021095,3]
[347310805,1735679456014,-500.0,0.00021095,3]
[347310806,1735679456023,-500.0,0.00021095,3]
[347310807,1735679456108,-500.0,0.00021095,3]
[347310808,1735679456118,-500.0,0.00021095,3]
[347310809,1735679456127,-1548.35,0.00021095,3]
[347310810,1735679456136,-8771.98,0.00021095,3]
[347310811,1735679456146,-503.42,0.00021095,3]
[347310812,1735679456155,-1016.18,0.00021095,3]
[347310813,1735679456164,-508.5045614,0.00021095,3]
[347310814,1735679456174,-422.1071245,0.00021095,3]
[347310815,1735679456183,-956.62,0.00021095,3]
[347310816,1735679456192,-845.91,0.00021095,3]
[347310817,1735679456202,-500.0,0.00021095,3]
[347310818,1735679456213,-727.17,0.00021095,3]
[347310819,1735679456222,-500.0,0.00021095,3]
[347310820,1735679456232,-571.77,0.00021095,3]
[347310821,1735679456241,-2896.96,0.00021095,3]
[347310822,1735679456251,-1237.87,0.00021095,3]
[347310823,1735679456260,-565.9,0.00021095,3]
[347310824,1735679456269,-4261.59,0.00021095,3]
[347310825,1735679456279,-500.0,0.00021095,3]
[347310826,1735679456288,-1582.67,0.00021095,3]
[347310827,1735679456298,-389.805421,0.00021095,2]
[347310828,1735679456307,-389.805421,0.00021095,2]
[347310829,1735679456317,-389.805421,0.00021095,2]
[347310830,1735679456326,-276.99246,0.00021096,2]
[347310831,1735679456335,-4663.45553622,0.00021096,2]
[347310832,1735679456344,-737.18,0.000211,2]
[347310833,1735679456354,-1000.0,0.00021121,2]
[347310834,1735679456363,-344.8621639,0.00021182,2]
[347310835,1735679456372,-4663.45553622,0.00021284,2]
[347310836,1735679456382,-276.99246,0.00021288,2]
[347310837,1735679456391,-151.0,0.00021299,6]
[347310838,1735679456400,-344.8621639,0.00021357,2]
[347310839,1735679456410,-199.69,0.00021369,2]
[347310840,1735679456419,-600.95,0.00021369,2]
[347310841,1735679456428,-674.34,0.00021369,3]
[347310842,1735679456437,-151.0,0.00021369,2]
[347310843,1735679456446,-500.0,0.00021369,3]
[347310844,1735679456456,-151.0,0.00021369,2]
[347310845,1735679456469,-500.0,0.00021369,3]
[347310846,1735679456479,-151.0,0.00021369,2]
[347310847,1735679456489,-500.0,0.00021369,3]
[347310848,1735679456498,-151.0,0.00021369,2]
[347310849,1735679456507,-555.25,0.00021369,3]
[347310850,1735679456516,-7797.53,0.00021369,3]
[347310851,1735679456525,-500.0,0.00021369,3]
[347310852,1735679456535,-853.75,0.00021369,3]
[347310853,1735679456544,-500.0,0.00021369,3]
[347310854,1735679456553,-1271.48,0.00021369,3]
[347310855,1735679456562,-1470.73,0.00021369,3]
[347310856,1735679456571,-500.0,0.00021369,3]
[347310857,1735679456581,-532.45,0.00021369,3]
[347310858,1735679456589,-500.0,0.00021369,3]
[347310859,1735679456598,-500.0,0.00021369,3]
[347310860,1735679456607,-500.0,0.00021369,3]
[347310861,1735679456617,-855.05,0.00021369,3]
[347310862,1735679456627,-500.0,0.00021369,3]
[347310863,1735679456636,-456.331573,0.00021369,2]
[347310864,1735679456646,-500.0,0.00021369,3]
[347310865,1735679456655,-683.45,0.00021369,3]
[347310866,1735679456664,-500.0,0.00021369,3]
[347310867,1735679456674,-456.331573,0.00021369,2]
[347310868,1735679456683,-772.63,0.00021369,3]
[347310869,1735679456692,-500.0,0.00021369,3]
[347310870,1735679456702,-719.37,0.00021369,3]
[347310871,1735679456713,-500.0,0.00021369,3]
[347310872,1735679456724,-500.0,0.00021369,3]
[347310873,1735679456733,-500.0,0.00021369,3]
[347310874,1735679456742,-500.0,0.00021369,3]
[347310875,1735679456752,-500.0,0.00021369,3]
[347310876,1735679456761,-595.35,0.00021369,3]
[347310877,1735679456770,-500.0,0.00021369,3]
[347310878,1735679456779,-500.0,0.00021369,3]
[347310879,1735679456788,-500.0,0.00021369,3]
[347310880,1735679456798,-313.136126,0.00021369,2]
[347310881,1735679456807,-500.0,0.00021369,2]
[347310882,1735679456816,-313.136126,0.00021369,2]
[347310883,1735679456824,-5062.37,0.00021369,3]
[347310884,1735679456833,-500.0,0.00021369,3]
[347310885,1735679456841,-623.88,0.00021369,3]
[347310886,1735679456850,-500.0,0.00021369,3]
[347310887,1735679456859,-906.38,0.00021369,3]
[347310888,1735679456869,-151.0,0.00021369,2]
[347310889,1735679456879,-624.44,0.00021369,3]
[347310890,1735679456889,-597.87,0.00021369,3]